[Event "Titled Tuesday Blitz April 4 Early 2023"]
[White "Winkels, Marcel"]
[Black "Toktomushev, Teimur"]
[WhiteFideId "1003887"]
[BlackFideId "14176726"]
[WhiteElo "1900"]
[BlackElo "2116"]
[Result "1/2-1/2"]
[Round "05"]
[TimeControl "180+2"]
[Date "2023.04.04"]
[WhiteClock "0:00:08"]
[BlackClock "0:00:06"]

1. d4 {[%clk 0:03:00]}  d5 {[%clk 0:02:58]} 2. Nc3 {[%clk 0:03:01]}  Nf6 {[%clk 0:02:55]} 3. Bf4 {[%clk 0:03:01]}  e6 {[%clk 0:02:49]} 4. Nb5 {[%clk 0:03:00]}  Na6 {[%clk 0:02:48]} 5. e3 {[%clk 0:02:58]}  c6 {[%clk 0:02:48]} 6. Nc3 {[%clk 0:02:58]}  Nc7 {[%clk 0:02:48]} 7. Nf3 {[%clk 0:02:56]}  Bd6 {[%clk 0:02:45]} 8. Ne5 {[%clk 0:02:55]}  O-O {[%clk 0:02:45]} 9. g4 {[%clk 0:02:54]}  c5 {[%clk 0:02:14]} 10. Qf3 {[%clk 0:02:51]}  Nd7 {[%clk 0:01:17]} 11. Qh3 {[%clk 0:02:35]}  Bxe5 {[%clk 0:00:24]} 12. dxe5 {[%clk 0:02:33]}  d4 {[%clk 0:00:24]} 13. Bd3 {[%clk 0:02:31]}  g6 {[%clk 0:00:23]} 14. Ne4 {[%clk 0:02:30]}  Nd5 {[%clk 0:00:21]} 15. Ng5 {[%clk 0:02:12]}  h5 {[%clk 0:00:14]} 16. gxh5 {[%clk 0:02:11]}  Kg7 {[%clk 0:00:04]} 17. hxg6 {[%clk 0:01:28]}  Rh8 {[%clk 0:00:04]} 18. Qg4 {[%clk 0:01:28]}  dxe3 {[%clk 0:00:02]} 19. Nxf7 {[%clk 0:01:20]}  exf2+ {[%clk 0:00:03]} 20. Kxf2 {[%clk 0:01:18]}  Qh4+ {[%clk 0:00:03]} 21. Qxh4 {[%clk 0:01:16]}  Rxh4 {[%clk 0:00:04]} 22. Bg3 {[%clk 0:01:03]}  Rh5 {[%clk 0:00:04]} 23. Rae1 {[%clk 0:00:55]}  b6 {[%clk 0:00:04]} 24. Nd6 {[%clk 0:00:51]}  Ne7 {[%clk 0:00:02]} 25. Ne8+ {[%clk 0:00:50]}  Kf8 {[%clk 0:00:02]} 26. Nf6 {[%clk 0:00:48]}  Bb7 {[%clk 0:00:02]} 27. Nxh5 {[%clk 0:00:44]}  Bxh1 {[%clk 0:00:01]} 28. Rxh1 {[%clk 0:00:43]}  Kg8 {[%clk 0:00:01]} 29. Nf6+ {[%clk 0:00:40]}  Kf8 {[%clk 0:00:01]} 30. Nxd7+ {[%clk 0:00:40]}  Kg7 {[%clk 0:00:02]} 31. Nf6 {[%clk 0:00:39]}  Rd8 {[%clk 0:00:02]} 32. b3 {[%clk 0:00:37]}  b5 {[%clk 0:00:01]} 33. h4 {[%clk 0:00:33]}  c4 {[%clk 0:00:02]} 34. bxc4 {[%clk 0:00:33]}  bxc4 {[%clk 0:00:03]} 35. Bxc4 {[%clk 0:00:33]}  Rd2+ {[%clk 0:00:03]} 36. Ke3 {[%clk 0:00:31]}  Rxc2 {[%clk 0:00:04]} 37. h5 {[%clk 0:00:31]}  Rxc4 {[%clk 0:00:02]} 38. h6+ {[%clk 0:00:30]}  Kxg6 {[%clk 0:00:02]} 39. h7 {[%clk 0:00:29]}  Nf5+ {[%clk 0:00:02]} 40. Kf2 {[%clk 0:00:28]}  Rc2+ {[%clk 0:00:02]} 41. Kf3 {[%clk 0:00:28]}  Rc3+ {[%clk 0:00:02]} 42. Kf2 {[%clk 0:00:28]}  Rc2+ {[%clk 0:00:02]} 43. Ke1 {[%clk 0:00:28]}  Rc1+ {[%clk 0:00:02]} 44. Kf2 {[%clk 0:00:25]}  Rxh1 {[%clk 0:00:03]} 45. Bf4 {[%clk 0:00:23]}  Rxh7 {[%clk 0:00:03]} 46. Nxh7 {[%clk 0:00:22]}  Kxh7 {[%clk 0:00:04]} 47. Be3 {[%clk 0:00:22]}  a6 {[%clk 0:00:03]} 48. Bc5 {[%clk 0:00:22]}  Kg6 {[%clk 0:00:03]} 49. Kf3 {[%clk 0:00:21]}  Ng7 {[%clk 0:00:02]} 50. Ke4 {[%clk 0:00:22]}  Nh5 {[%clk 0:00:02]} 51. Kd4 {[%clk 0:00:21]}  Kf5 {[%clk 0:00:02]} 52. Bd6 {[%clk 0:00:21]}  Nf4 {[%clk 0:00:02]} 53. Kc5 {[%clk 0:00:22]}  Nd3+ {[%clk 0:00:02]} 54. Kb6 {[%clk 0:00:22]}  Nxe5 {[%clk 0:00:02]} 55. Kxa6 {[%clk 0:00:22]}  Nc4 {[%clk 0:00:02]} 56. Bb8 {[%clk 0:00:21]}  e5 {[%clk 0:00:02]} 57. Kb5 {[%clk 0:00:21]}  Na3+ {[%clk 0:00:02]} 58. Kb4 {[%clk 0:00:20]}  Nc2+ {[%clk 0:00:03]} 59. Kb3 {[%clk 0:00:20]}  Nd4+ {[%clk 0:00:04]} 60. Kc4 {[%clk 0:00:20]}  Nc6 {[%clk 0:00:04]} 61. Bc7 {[%clk 0:00:19]}  e4 {[%clk 0:00:03]} 62. a4 {[%clk 0:00:18]}  e3 {[%clk 0:00:02]} 63. Bg3 {[%clk 0:00:16]}  Ke4 {[%clk 0:00:02]} 64. Kb5 {[%clk 0:00:14]}  Nd4+ {[%clk 0:00:02]} 65. Kb6 {[%clk 0:00:12]}  Nb3 {[%clk 0:00:02]} 66. a5 {[%clk 0:00:12]}  Nxa5 {[%clk 0:00:01]} 67. Kxa5 {[%clk 0:00:12]}  Kf3 {[%clk 0:00:02]} 68. Bh4 {[%clk 0:00:11]}  Ke2 {[%clk 0:00:03]} 69. Kb4 {[%clk 0:00:10]}  Kd1 {[%clk 0:00:04]} 70. Kc3 {[%clk 0:00:10]}  e2 {[%clk 0:00:05]} 71. Kd3 {[%clk 0:00:09]}  e1=Q {[%clk 0:00:06]} 72. Bxe1 {[%clk 0:00:08]} 1/2-1/2


[Site "https://www.chess.com"]

[Event "Titled Tuesday Blitz April 4 Early 2023"]
[White "Kukreja, Sankalp"]
[Black "hsd2016"]
[WhiteFideId "45027676"]
[WhiteElo "2126"]
[BlackElo "2038"]
[Result "1-0"]
[Round "05"]
[TimeControl "180+2"]
[Date "2023.04.04"]
[WhiteClock "0:00:07"]
[BlackClock "0:00:11"]

1. e4 {[%clk 0:02:44]}  e5 {[%clk 0:02:59]} 2. Nf3 {[%clk 0:02:44]}  Nc6 {[%clk 0:03:00]} 3. Bb5 {[%clk 0:02:41]}  a6 {[%clk 0:03:00]} 4. Ba4 {[%clk 0:02:20]}  Nf6 {[%clk 0:02:59]} 5. O-O {[%clk 0:02:09]}  Be7 {[%clk 0:02:58]} 6. Re1 {[%clk 0:02:02]}  b5 {[%clk 0:02:55]} 7. Bb3 {[%clk 0:01:59]}  O-O {[%clk 0:02:56]} 8. c3 {[%clk 0:01:55]}  d5 {[%clk 0:02:41]} 9. exd5 {[%clk 0:01:46]}  Nxd5 {[%clk 0:02:30]} 10. d4 {[%clk 0:01:38]}  exd4 {[%clk 0:02:19]} 11. Nxd4 {[%clk 0:01:38]}  Nxd4 {[%clk 0:02:01]} 12. Qxd4 {[%clk 0:01:39]}  c6 {[%clk 0:02:02]} 13. Nd2 {[%clk 0:01:32]}  Bf6 {[%clk 0:02:00]} 14. Qc5 {[%clk 0:01:12]}  Bb7 {[%clk 0:01:50]} 15. Nf3 {[%clk 0:01:10]}  Re8 {[%clk 0:01:39]} 16. Bd2 {[%clk 0:00:52]}  Qd7 {[%clk 0:01:32]} 17. Rad1 {[%clk 0:00:48]}  Be7 {[%clk 0:01:30]} 18. Qd4 {[%clk 0:00:47]}  c5 {[%clk 0:01:29]} 19. Qe4 {[%clk 0:00:14]}  c4 {[%clk 0:01:25]} 20. Bc2 {[%clk 0:00:13]}  Nf6 {[%clk 0:01:25]} 21. Qh4 {[%clk 0:00:13]}  Bxf3 {[%clk 0:01:15]} 22. gxf3 {[%clk 0:00:14]}  Qc6 {[%clk 0:01:13]} 23. Bg5 {[%clk 0:00:14]}  h6 {[%clk 0:01:13]} 24. Bxh6 {[%clk 0:00:08]}  gxh6 {[%clk 0:01:11]} 25. Qxh6 {[%clk 0:00:08]}  Qxf3 {[%clk 0:01:11]} 26. Re3 {[%clk 0:00:09]}  Qxe3 {[%clk 0:00:25]} 27. fxe3 {[%clk 0:00:08]}  Rad8 {[%clk 0:00:16]} 28. Rf1 {[%clk 0:00:08]}  Rd6 {[%clk 0:00:16]} 29. Qg5+ {[%clk 0:00:08]}  Kf8 {[%clk 0:00:16]} 30. Qh6+ {[%clk 0:00:06]}  Kg8 {[%clk 0:00:16]} 31. Rf3 {[%clk 0:00:07]}  Bf8 {[%clk 0:00:11]} 32. Rg3+ {[%clk 0:00:07]}  Ng4 {[%clk 0:00:09]} 33. Rxg4+ {[%clk 0:00:07]}  Rg6 {[%clk 0:00:09]} 34. Bxg6 {[%clk 0:00:07]}  fxg6 {[%clk 0:00:10]} 35. Qxg6+ {[%clk 0:00:07]}  Bg7 {[%clk 0:00:11]} 36. Qxg7# {[%clk 0:00:07]} 1-0


[Site "https://www.chess.com"]

[Event "Titled Tuesday Blitz April 4 Early 2023"]
[White "Jimenez Jimenez, Leandro"]
[Black "Maluco_do_Natal_00"]
[WhiteFideId "6415253"]
[WhiteElo "2263"]
[BlackElo "2003"]
[Result "1-0"]
[Round "05"]
[TimeControl "180+2"]
[Date "2023.04.04"]
[WhiteClock "0:00:18"]
[BlackClock "0:00:02"]

1. d4 {[%clk 0:03:00]}  d5 {[%clk 0:02:57]} 2. c4 {[%clk 0:03:00]}  c6 {[%clk 0:02:57]} 3. cxd5 {[%clk 0:02:59]}  cxd5 {[%clk 0:02:57]} 4. Nc3 {[%clk 0:03:00]}  Nf6 {[%clk 0:02:56]} 5. Nf3 {[%clk 0:03:00]}  Nc6 {[%clk 0:02:57]} 6. Bf4 {[%clk 0:02:59]}  a6 {[%clk 0:02:48]} 7. Rc1 {[%clk 0:02:58]}  Bf5 {[%clk 0:02:42]} 8. a3 {[%clk 0:02:51]}  Rc8 {[%clk 0:02:41]} 9. e3 {[%clk 0:02:43]}  e6 {[%clk 0:02:17]} 10. Qb3 {[%clk 0:02:31]}  Na5 {[%clk 0:02:08]} 11. Qa4+ {[%clk 0:02:30]}  Nc6 {[%clk 0:02:08]} 12. Ne5 {[%clk 0:02:20]}  Be7 {[%clk 0:01:52]} 13. Nxc6 {[%clk 0:02:17]}  bxc6 {[%clk 0:01:38]} 14. Bxa6 {[%clk 0:02:13]}  Ra8 {[%clk 0:01:21]} 15. Qxc6+ {[%clk 0:02:12]}  Nd7 {[%clk 0:01:20]} 16. Bb5 {[%clk 0:01:59]}  Ra7 {[%clk 0:01:05]} 17. O-O {[%clk 0:01:37]}  O-O {[%clk 0:01:04]} 18. Rfd1 {[%clk 0:01:22]}  Nf6 {[%clk 0:00:59]} 19. h3 {[%clk 0:01:13]}  Qa5 {[%clk 0:00:18]} 20. Bd3 {[%clk 0:00:41]}  Ne4 {[%clk 0:00:13]} 21. Nxe4 {[%clk 0:00:37]}  dxe4 {[%clk 0:00:12]} 22. Bf1 {[%clk 0:00:35]}  h6 {[%clk 0:00:09]} 23. Bd6 {[%clk 0:00:31]}  Ra6 {[%clk 0:00:08]} 24. Bb4 {[%clk 0:00:23]}  Rxc6 {[%clk 0:00:06]} 25. Bxa5 {[%clk 0:00:22]}  Rxc1 {[%clk 0:00:06]} 26. Rxc1 {[%clk 0:00:22]}  Rb8 {[%clk 0:00:06]} 27. b4 {[%clk 0:00:22]}  e5 {[%clk 0:00:04]} 28. dxe5 {[%clk 0:00:21]}  Be6 {[%clk 0:00:04]} 29. Rc7 {[%clk 0:00:18]}  Bf8 {[%clk 0:00:03]} 30. Bc4 {[%clk 0:00:18]}  Bxc4 {[%clk 0:00:02]} 31. Rxc4 {[%clk 0:00:18]}  Rb5 {[%clk 0:00:02]} 32. Rxe4 {[%clk 0:00:18]}  g5 {[%clk 0:00:02]} 33. g4 {[%clk 0:00:18]}  Kg7 {[%clk 0:00:02]} 34. e6 {[%clk 0:00:18]} 1-0


[Site "https://www.chess.com"]

[Event "Titled Tuesday Blitz April 4 Early 2023"]
[White "Vivas Zamora, Fabian Ernesto"]
[Black "Ward, Ieuan C"]
[WhiteFideId "3902480"]
[BlackFideId "406627"]
[WhiteElo "2262"]
[BlackElo "2310"]
[Result "1-0"]
[Round "05"]
[TimeControl "180+2"]
[Date "2023.04.04"]
[WhiteClock "0:00:09"]
[BlackClock "0:00:14"]

1. e4 {[%clk 0:03:00]}  c5 {[%clk 0:02:58]} 2. Nf3 {[%clk 0:03:00]}  d6 {[%clk 0:02:59]} 3. d4 {[%clk 0:03:00]}  cxd4 {[%clk 0:02:59]} 4. Nxd4 {[%clk 0:03:01]}  Nf6 {[%clk 0:03:00]} 5. Nc3 {[%clk 0:03:02]}  a6 {[%clk 0:03:01]} 6. h3 {[%clk 0:02:58]}  g6 {[%clk 0:02:59]} 7. Be3 {[%clk 0:02:27]}  Bg7 {[%clk 0:02:59]} 8. g4 {[%clk 0:02:01]}  Nc6 {[%clk 0:02:54]} 9. Bg2 {[%clk 0:02:01]}  Bd7 {[%clk 0:02:51]} 10. O-O {[%clk 0:01:57]}  Nxd4 {[%clk 0:02:46]} 11. Bxd4 {[%clk 0:01:57]}  O-O {[%clk 0:02:40]} 12. f4 {[%clk 0:01:57]}  Bc6 {[%clk 0:02:34]} 13. Nd5 {[%clk 0:01:48]}  Nxd5 {[%clk 0:02:24]} 14. exd5 {[%clk 0:01:49]}  Bb5 {[%clk 0:02:22]} 15. Re1 {[%clk 0:01:47]}  Rc8 {[%clk 0:02:14]} 16. a4 {[%clk 0:01:41]}  Bd7 {[%clk 0:02:11]} 17. Bxg7 {[%clk 0:01:36]}  Kxg7 {[%clk 0:02:11]} 18. Qd4+ {[%clk 0:01:36]}  Kg8 {[%clk 0:02:06]} 19. c4 {[%clk 0:01:30]}  b5 {[%clk 0:02:03]} 20. axb5 {[%clk 0:01:26]}  axb5 {[%clk 0:02:04]} 21. cxb5 {[%clk 0:01:01]}  Bxb5 {[%clk 0:02:05]} 22. Ra7 {[%clk 0:00:52]}  Rc7 {[%clk 0:02:02]} 23. Qb6 {[%clk 0:00:43]}  Rxa7 {[%clk 0:01:57]} 24. Qxa7 {[%clk 0:00:43]}  Re8 {[%clk 0:01:53]} 25. Qb7 {[%clk 0:00:41]}  Qd7 {[%clk 0:01:49]} 26. Qxd7 {[%clk 0:00:35]}  Bxd7 {[%clk 0:01:49]} 27. b4 {[%clk 0:00:35]}  Kf8 {[%clk 0:01:45]} 28. Bf1 {[%clk 0:00:32]}  Rb8 {[%clk 0:01:44]} 29. b5 {[%clk 0:00:33]}  Ke8 {[%clk 0:01:33]} 30. Kf2 {[%clk 0:00:30]}  Kd8 {[%clk 0:01:32]} 31. Ke3 {[%clk 0:00:27]}  Rb7 {[%clk 0:01:28]} 32. Rb1 {[%clk 0:00:19]}  Kc7 {[%clk 0:01:28]} 33. Kd4 {[%clk 0:00:15]}  Kb6 {[%clk 0:01:28]} 34. Re1 {[%clk 0:00:09]}  Bxb5 {[%clk 0:01:21]} 35. Rb1 {[%clk 0:00:07]}  Ka5 {[%clk 0:01:15]} 36. f5 {[%clk 0:00:05]}  Rb6 {[%clk 0:00:58]} 37. Ra1+ {[%clk 0:00:03]}  Ba4 {[%clk 0:00:58]} 38. Bc4 {[%clk 0:00:01]}  Rb2 {[%clk 0:00:50]} 39. Kc3 {[%clk 0:00:01]}  Rh2 {[%clk 0:00:48]} 40. Re1 {[%clk 0:00:01]}  Rxh3+ {[%clk 0:00:46]} 41. Kd4 {[%clk 0:00:01]}  Rg3 {[%clk 0:00:44]} 42. Rxe7 {[%clk 0:00:01]}  Rxg4+ {[%clk 0:00:44]} 43. Kc3 {[%clk 0:00:02]}  Kb6 {[%clk 0:00:34]} 44. f6 {[%clk 0:00:02]}  h5 {[%clk 0:00:20]} 45. Rxf7 {[%clk 0:00:02]}  Rf4 {[%clk 0:00:20]} 46. Rf8 {[%clk 0:00:02]}  h4 {[%clk 0:00:19]} 47. f7 {[%clk 0:00:03]}  Kb7 {[%clk 0:00:19]} 48. Bd3 {[%clk 0:00:01]}  h3 {[%clk 0:00:13]} 49. Bxg6 {[%clk 0:00:01]}  h2 {[%clk 0:00:14]} 50. Rh8 {[%clk 0:00:01]}  Rf3+ {[%clk 0:00:12]} 51. Kb4 {[%clk 0:00:01]}  Rf4+ {[%clk 0:00:12]} 52. Kc3 {[%clk 0:00:02]}  Rf3+ {[%clk 0:00:12]} 53. Kd4 {[%clk 0:00:02]}  Rf4+ {[%clk 0:00:07]} 54. Ke3 {[%clk 0:00:02]}  Rf6 {[%clk 0:00:07]} 55. Rxh2 {[%clk 0:00:02]}  Bb3 {[%clk 0:00:04]} 56. Rh8 {[%clk 0:00:03]}  Bxd5 {[%clk 0:00:03]} 57. f8=Q {[%clk 0:00:03]}  Rxf8 {[%clk 0:00:04]} 58. Rxf8 {[%clk 0:00:04]}  Kc6 {[%clk 0:00:05]} 59. Kd4 {[%clk 0:00:04]}  Be6 {[%clk 0:00:05]} 60. Be4+ {[%clk 0:00:05]}  Kc7 {[%clk 0:00:06]} 61. Rf6 {[%clk 0:00:05]}  Bd7 {[%clk 0:00:07]} 62. Rg6 {[%clk 0:00:05]}  Kd8 {[%clk 0:00:08]} 63. Rh6 {[%clk 0:00:06]}  Ke7 {[%clk 0:00:09]} 64. Bd5 {[%clk 0:00:06]}  Be6 {[%clk 0:00:10]} 65. Rxe6+ {[%clk 0:00:06]}  Kd7 {[%clk 0:00:11]} 66. Rh6 {[%clk 0:00:07]}  Ke7 {[%clk 0:00:11]} 67. Rh7+ {[%clk 0:00:07]}  Kf6 {[%clk 0:00:12]} 68. Rd7 {[%clk 0:00:08]}  Kg5 {[%clk 0:00:13]} 69. Rxd6 {[%clk 0:00:08]}  Kg4 {[%clk 0:00:14]} 70. Re6 {[%clk 0:00:09]}  Kg3 {[%clk 0:00:14]} 71. Re4 {[%clk 0:00:09]} 1-0


[Site "https://www.chess.com"]

[Event "Titled Tuesday Blitz April 4 Early 2023"]
[White "Tagliata"]
[Black "Legenia, Artem"]
[BlackFideId "14136945"]
[WhiteElo "2282"]
[BlackElo "1992"]
[Result "1-0"]
[Round "05"]
[TimeControl "180+2"]
[Date "2023.04.04"]
[WhiteClock "0:00:53"]
[BlackClock "0:01:03"]

1. e4 {[%clk 0:03:00]}  Nf6 {[%clk 0:02:58]} 2. Nc3 {[%clk 0:02:58]}  e6 {[%clk 0:02:56]} 3. e5 {[%clk 0:02:55]}  Nd5 {[%clk 0:02:55]} 4. Nxd5 {[%clk 0:02:55]}  exd5 {[%clk 0:02:55]} 5. d4 {[%clk 0:02:55]}  d6 {[%clk 0:02:54]} 6. Nf3 {[%clk 0:02:49]}  Nc6 {[%clk 0:02:52]} 7. exd6 {[%clk 0:02:48]}  Bxd6 {[%clk 0:02:52]} 8. Bb5 {[%clk 0:02:48]}  O-O {[%clk 0:02:51]} 9. O-O {[%clk 0:02:48]}  Ne7 {[%clk 0:02:51]} 10. c3 {[%clk 0:02:47]}  c6 {[%clk 0:02:51]} 11. Bd3 {[%clk 0:02:47]}  Bf5 {[%clk 0:02:51]} 12. Qc2 {[%clk 0:02:46]}  Qd7 {[%clk 0:02:48]} 13. Bg5 {[%clk 0:02:44]}  f6 {[%clk 0:02:48]} 14. Be3 {[%clk 0:02:42]}  Bxd3 {[%clk 0:02:48]} 15. Qxd3 {[%clk 0:02:43]}  Qf5 {[%clk 0:02:48]} 16. Qxf5 {[%clk 0:02:33]}  Nxf5 {[%clk 0:02:48]} 17. Rfe1 {[%clk 0:02:33]}  Rfe8 {[%clk 0:02:48]} 18. Bd2 {[%clk 0:02:34]}  h5 {[%clk 0:02:47]} 19. g3 {[%clk 0:02:32]}  Kf7 {[%clk 0:02:47]} 20. Kf1 {[%clk 0:02:30]}  g5 {[%clk 0:02:46]} 21. Rxe8 {[%clk 0:02:30]}  Rxe8 {[%clk 0:02:46]} 22. Ne1 {[%clk 0:02:29]}  g4 {[%clk 0:02:41]} 23. Nd3 {[%clk 0:02:29]}  b6 {[%clk 0:02:40]} 24. Bf4 {[%clk 0:02:28]}  Bf8 {[%clk 0:02:38]} 25. a4 {[%clk 0:02:25]}  c5 {[%clk 0:02:38]} 26. dxc5 {[%clk 0:02:21]}  bxc5 {[%clk 0:02:38]} 27. Rd1 {[%clk 0:02:10]}  d4 {[%clk 0:02:32]} 28. c4 {[%clk 0:02:05]}  a6 {[%clk 0:02:18]} 29. Bd2 {[%clk 0:01:45]}  Bd6 {[%clk 0:02:14]} 30. b4 {[%clk 0:01:38]}  cxb4 {[%clk 0:02:13]} 31. Bxb4 {[%clk 0:01:39]}  Bxb4 {[%clk 0:02:09]} 32. Nxb4 {[%clk 0:01:39]}  Rc8 {[%clk 0:02:08]} 33. Rc1 {[%clk 0:01:35]}  a5 {[%clk 0:01:59]} 34. Nd5 {[%clk 0:01:29]}  Rc6 {[%clk 0:01:53]} 35. Ke2 {[%clk 0:01:24]}  h4 {[%clk 0:01:44]} 36. Kd3 {[%clk 0:01:21]}  hxg3 {[%clk 0:01:40]} 37. fxg3 {[%clk 0:01:10]}  Rc8 {[%clk 0:01:34]} 38. Rf1 {[%clk 0:01:08]}  Ne7 {[%clk 0:01:21]} 39. Rxf6+ {[%clk 0:01:04]}  Kg7 {[%clk 0:01:20]} 40. Nxe7 {[%clk 0:00:54]}  Rh8 {[%clk 0:01:03]} 41. Rf2 {[%clk 0:00:53]} 1-0


[Site "https://www.chess.com"]

[Event "Titled Tuesday Blitz April 4 Early 2023"]
[White "Thiel, Thomas"]
[Black "Ansh M Shah"]
[WhiteFideId "4615964"]
[BlackFideId "25033379"]
[WhiteElo "2218"]
[BlackElo "2084"]
[Result "1/2-1/2"]
[Round "05"]
[TimeControl "180+2"]
[Date "2023.04.04"]
[WhiteClock "0:00:55"]
[BlackClock "0:00:14"]

1. e4 {[%clk 0:03:00]}  c6 {[%clk 0:02:59]} 2. d4 {[%clk 0:02:58]}  d5 {[%clk 0:03:00]} 3. exd5 {[%clk 0:02:57]}  cxd5 {[%clk 0:03:01]} 4. c4 {[%clk 0:02:54]}  Nf6 {[%clk 0:03:02]} 5. Nc3 {[%clk 0:02:53]}  Nc6 {[%clk 0:03:02]} 6. Bg5 {[%clk 0:02:50]}  dxc4 {[%clk 0:03:02]} 7. Bxc4 {[%clk 0:02:45]}  h6 {[%clk 0:03:01]} 8. Bxf6 {[%clk 0:02:43]}  exf6 {[%clk 0:03:02]} 9. Qb3 {[%clk 0:02:39]}  Qe7+ {[%clk 0:02:24]} 10. Nge2 {[%clk 0:02:38]}  Nxd4 {[%clk 0:02:22]} 11. Bxf7+ {[%clk 0:02:36]}  Qxf7 {[%clk 0:02:17]} 12. Qxf7+ {[%clk 0:02:37]}  Kxf7 {[%clk 0:02:15]} 13. Nxd4 {[%clk 0:02:38]}  Bc5 {[%clk 0:02:09]} 14. O-O-O {[%clk 0:02:32]}  Rd8 {[%clk 0:01:40]} 15. Nce2 {[%clk 0:02:28]}  Bd7 {[%clk 0:01:28]} 16. f3 {[%clk 0:02:27]}  Rac8 {[%clk 0:01:15]} 17. Kb1 {[%clk 0:02:24]}  Bb6 {[%clk 0:00:45]} 18. Ng3 {[%clk 0:02:10]}  Ba4 {[%clk 0:00:20]} 19. Nb3 {[%clk 0:02:07]}  Bxb3 {[%clk 0:00:19]} 20. axb3 {[%clk 0:02:05]}  Bc7 {[%clk 0:00:20]} 21. Ne4 {[%clk 0:02:01]}  Be5 {[%clk 0:00:19]} 22. b4 {[%clk 0:01:51]}  b6 {[%clk 0:00:19]} 23. Rxd8 {[%clk 0:01:37]}  Rxd8 {[%clk 0:00:19]} 24. Kc2 {[%clk 0:01:36]}  f5 {[%clk 0:00:18]} 25. Nc3 {[%clk 0:01:34]}  Rd4 {[%clk 0:00:18]} 26. b5 {[%clk 0:01:31]}  Rb4 {[%clk 0:00:13]} 27. Ra1 {[%clk 0:01:19]}  Bxc3 {[%clk 0:00:10]} 28. Rxa7+ {[%clk 0:01:15]}  Kf6 {[%clk 0:00:10]} 29. bxc3 {[%clk 0:01:12]}  Rxb5 {[%clk 0:00:11]} 30. c4 {[%clk 0:01:12]}  Rc5 {[%clk 0:00:10]} 31. Kd3 {[%clk 0:01:11]}  b5 {[%clk 0:00:10]} 32. cxb5 {[%clk 0:01:10]}  Rxb5 {[%clk 0:00:11]} 33. Ra2 {[%clk 0:01:08]}  Re5 {[%clk 0:00:09]} 34. g3 {[%clk 0:01:06]}  Re1 {[%clk 0:00:09]} 35. f4 {[%clk 0:01:05]}  Kg6 {[%clk 0:00:09]} 36. Re2 {[%clk 0:01:03]}  Rxe2 {[%clk 0:00:08]} 37. Kxe2 {[%clk 0:01:02]}  Kh5 {[%clk 0:00:09]} 38. Kf3 {[%clk 0:01:02]}  g6 {[%clk 0:00:09]} 39. h3 {[%clk 0:01:00]}  g5 {[%clk 0:00:09]} 40. g4+ {[%clk 0:00:59]}  Kg6 {[%clk 0:00:09]} 41. gxf5+ {[%clk 0:00:57]}  Kxf5 {[%clk 0:00:10]} 42. fxg5 {[%clk 0:00:57]}  Kxg5 {[%clk 0:00:10]} 43. Kg3 {[%clk 0:00:56]}  Kh5 {[%clk 0:00:11]} 44. h4 {[%clk 0:00:56]}  Kg6 {[%clk 0:00:10]} 45. Kg4 {[%clk 0:00:56]}  h5+ {[%clk 0:00:11]} 46. Kf4 {[%clk 0:00:54]}  Kf6 {[%clk 0:00:11]} 47. Ke4 {[%clk 0:00:54]}  Ke6 {[%clk 0:00:12]} 48. Kf4 {[%clk 0:00:54]}  Kf6 {[%clk 0:00:13]} 49. Ke4 {[%clk 0:00:54]}  Ke6 {[%clk 0:00:13]} 50. Kf4 {[%clk 0:00:55]}  Kf6 {[%clk 0:00:14]} 1/2-1/2


[Site "https://www.chess.com"]

[Event "Titled Tuesday Blitz April 4 Early 2023"]
[White "Pein, Jonathan"]
[Black "rionelG"]
[WhiteFideId "417092"]
[WhiteElo "2151"]
[BlackElo "2195"]
[Result "1-0"]
[Round "05"]
[TimeControl "180+2"]
[Date "2023.04.04"]
[WhiteClock "0:00:04"]
[BlackClock "0:00:01"]

1. e4 {[%clk 0:02:56]}  c5 {[%clk 0:02:18]} 2. Nf3 {[%clk 0:02:47]}  d6 {[%clk 0:02:18]} 3. d4 {[%clk 0:02:46]}  cxd4 {[%clk 0:02:19]} 4. Nxd4 {[%clk 0:02:47]}  Nf6 {[%clk 0:02:19]} 5. Nc3 {[%clk 0:02:48]}  a6 {[%clk 0:02:20]} 6. g3 {[%clk 0:02:39]}  e5 {[%clk 0:02:19]} 7. Nde2 {[%clk 0:02:38]}  Be7 {[%clk 0:02:20]} 8. Bg2 {[%clk 0:02:38]}  Be6 {[%clk 0:02:19]} 9. O-O {[%clk 0:02:38]}  Nbd7 {[%clk 0:02:19]} 10. a4 {[%clk 0:02:37]}  Qc7 {[%clk 0:02:17]} 11. Nd5 {[%clk 0:02:35]}  Bxd5 {[%clk 0:02:16]} 12. exd5 {[%clk 0:02:36]}  Rc8 {[%clk 0:02:15]} 13. c3 {[%clk 0:02:34]}  O-O {[%clk 0:02:13]} 14. a5 {[%clk 0:02:31]}  b5 {[%clk 0:02:08]} 15. axb6 {[%clk 0:02:29]}  Qxb6 {[%clk 0:02:09]} 16. Qa4 {[%clk 0:02:05]}  Nc5 {[%clk 0:02:04]} 17. Qa5 {[%clk 0:02:04]}  Rb8 {[%clk 0:01:57]} 18. b4 {[%clk 0:01:56]}  Nb3 {[%clk 0:01:34]} 19. Qxb6 {[%clk 0:01:46]}  Rxb6 {[%clk 0:01:35]} 20. Be3 {[%clk 0:01:39]}  Nxa1 {[%clk 0:01:11]} 21. Bxb6 {[%clk 0:01:38]}  Nc2 {[%clk 0:01:08]} 22. Rc1 {[%clk 0:01:22]}  Na3 {[%clk 0:01:04]} 23. Ra1 {[%clk 0:01:22]}  Nc4 {[%clk 0:01:02]} 24. Rxa6 {[%clk 0:01:22]}  Nxb6 {[%clk 0:00:55]} 25. Rxb6 {[%clk 0:01:23]}  Ra8 {[%clk 0:00:55]} 26. Bf1 {[%clk 0:01:23]}  Nxd5 {[%clk 0:00:51]} 27. Rb7 {[%clk 0:01:23]}  Bg5 {[%clk 0:00:49]} 28. c4 {[%clk 0:01:18]}  Nf6 {[%clk 0:00:40]} 29. h4 {[%clk 0:01:18]}  Bd2 {[%clk 0:00:39]} 30. b5 {[%clk 0:01:12]}  Bb4 {[%clk 0:00:38]} 31. b6 {[%clk 0:00:46]}  Bc5 {[%clk 0:00:37]} 32. Nc3 {[%clk 0:00:46]}  h5 {[%clk 0:00:32]} 33. Nb5 {[%clk 0:00:42]}  Ra6 {[%clk 0:00:29]} 34. Rb8+ {[%clk 0:00:42]}  Kh7 {[%clk 0:00:26]} 35. b7 {[%clk 0:00:41]}  Rb6 {[%clk 0:00:25]} 36. Bg2 {[%clk 0:00:40]}  d5 {[%clk 0:00:20]} 37. Rc8 {[%clk 0:00:23]}  Rxb7 {[%clk 0:00:13]} 38. Rxc5 {[%clk 0:00:23]}  e4 {[%clk 0:00:11]} 39. cxd5 {[%clk 0:00:21]}  g6 {[%clk 0:00:11]} 40. Nd6 {[%clk 0:00:19]}  Re7 {[%clk 0:00:10]} 41. Nc4 {[%clk 0:00:14]}  Kg7 {[%clk 0:00:06]} 42. d6 {[%clk 0:00:14]}  Rd7 {[%clk 0:00:06]} 43. Rc7 {[%clk 0:00:14]}  Rd8 {[%clk 0:00:05]} 44. Kf1 {[%clk 0:00:12]}  Ne8 {[%clk 0:00:04]} 45. Re7 {[%clk 0:00:12]}  Nxd6 {[%clk 0:00:04]} 46. Nxd6 {[%clk 0:00:12]}  Rxd6 {[%clk 0:00:05]} 47. Bxe4 {[%clk 0:00:12]}  Rd1+ {[%clk 0:00:05]} 48. Kg2 {[%clk 0:00:12]}  Rd6 {[%clk 0:00:05]} 49. Bc2 {[%clk 0:00:10]}  Rb6 {[%clk 0:00:04]} 50. Re3 {[%clk 0:00:10]}  f5 {[%clk 0:00:03]} 51. Kf3 {[%clk 0:00:09]}  Kh6 {[%clk 0:00:02]} 52. Bb3 {[%clk 0:00:08]}  Rb4 {[%clk 0:00:02]} 53. Ke2 {[%clk 0:00:07]}  Rd4 {[%clk 0:00:02]} 54. Bc2 {[%clk 0:00:06]}  Rb4 {[%clk 0:00:02]} 55. Rc3 {[%clk 0:00:06]}  f4 {[%clk 0:00:02]} 56. Kf3 {[%clk 0:00:03]}  fxg3 {[%clk 0:00:02]} 57. fxg3 {[%clk 0:00:04]}  Rd4 {[%clk 0:00:01]} 58. Rc6 {[%clk 0:00:04]} 1-0


[Site "https://www.chess.com"]